fUSD/lending_fUSD_20240913
["ID","MTS","AMOUNT","RATE_DAILY","PERIOD"]
[337935851,1726210240144,-891.22,0.00012951,2]
[337935853,1726210240153,-500.0,0.00012951,2]
[337935854,1726210240162,-779.04,0.00012951,2]
[337935855,1726210240171,-500.0,0.00012951,2]
[337935857,1726210240180,-751.18,0.00012951,2]
[337935858,1726210240189,-500.0,0.00012951,2]
[337935860,1726210240198,-2429.77,0.00012951,2]
[337935861,1726210240208,-500.0,0.00012951,2]
[337935862,1726210240217,-1454.87,0.00012951,2]
[337935864,1726210240226,-684.01,0.00012951,2]
[337935865,1726210240236,-562.56,0.00012951,2]
[337935866,1726210240245,-500.0,0.00012951,2]
[337935868,1726210240254,-2187.28,0.00012951,2]
[337935869,1726210240263,-500.0,0.00012951,2]
[337935870,1726210240272,-1373.53,0.00012951,2]
[337935872,1726210240282,-500.0,0.00012951,2]
[337935873,1726210240292,-500.0,0.00012951,2]
[337935875,1726210240302,-500.0,0.00012951,2]
[337935876,1726210240311,-500.0,0.00012951,2]
[337935877,1726210240320,-657.39,0.00012951,2]
[337935879,1726210240329,-579.86,0.00012951,2]
[337935880,1726210240338,-1321.01,0.00012951,2]
[337935881,1726210240347,-500.0,0.00012951,2]
[337935883,1726210240356,-516.09,0.00012951,2]
[337935884,1726210240365,-500.0,0.00012951,2]
[337935885,1726210240374,-500.0,0.00012951,2]
[337935887,1726210240383,-634.09,0.00012951,2]
[337935888,1726210240393,-791.86,0.00012951,2]
[337935889,1726210240402,-1453.89,0.00012951,2]
[337935891,1726210240413,-1772.65,0.00012951,2]
[337935892,1726210240424,-500.0,0.00012951,2]
[337935893,1726210240433,-671.19,0.00012951,2]
[337935895,1726210240443,-500.0,0.00012951,2]
[337935896,1726210240452,-614.95,0.00012951,2]
[337935897,1726210240464,-557.22,0.00012951,2]
[337935899,1726210240473,-1682.12,0.00012951,2]
[337935900,1726210240482,-671.56,0.00012951,2]
[337935902,1726210240493,-1031.13,0.00012951,2]
[337935903,1726210240502,-500.0,0.00012951,2]
[337935904,1726210240511,-957.07,0.00012951,2]
[337935906,1726210240522,-500.0,0.00012951,2]
[337935907,1726210240532,-500.0,0.00012951,2]
[337935908,1726210240541,-3171.09,0.00012951,2]
[337935910,1726210240552,-954.63,0.00012951,2]
[337935911,1726210240562,-538.41,0.00012951,2]
[337935912,1726210240571,-500.0,0.00012951,2]
[337935914,1726210240580,-500.0,0.00012951,2]
[337935915,1726210240590,-2191.26,0.00012951,2]
[337935916,1726210240599,-1230.93,0.00012951,2]
[337935918,1726210240608,-500.0,0.00012951,2]
[337935919,1726210240618,-500.0,0.00012951,2]
[337935921,1726210240629,-1222.55,0.00012951,2]
[337935922,1726210240639,-500.0,0.00012951,2]
[337935923,1726210240648,-1738.87,0.00012951,2]
[337935925,1726210240658,-500.0,0.00012951,2]
[337935926,1726210240668,-1816.7,0.00012951,2]
[337935927,1726210240678,-585.45,0.00012951,2]
[337935929,1726210240688,-500.0,0.00012951,2]
[337935930,1726210240697,-500.0,0.00012951,2]
[337935931,1726210240707,-1552.23,0.00012951,2]
[337935933,1726210240716,-657.88,0.00012951,2]
[337935934,1726210240725,-1737.39,0.00012951,2]
[337935935,1726210240734,-500.0,0.00012951,2]
[337935937,1726210240744,-2154.77,0.00012951,2]
[337935938,1726210240753,-1267.08,0.00012952,2]
[337935939,1726210240762,-650.09,0.00012952,2]
[337935941,1726210240771,-500.0,0.00012952,2]
[337935942,1726210240779,-2220.15,0.00012952,2]
[337935943,1726210240789,-2541.68,0.00012952,2]
[337935945,1726210240798,-3221.15,0.00012952,2]
[337935946,1726210240807,-2126.3,0.00012952,2]
[337935947,1726210240816,-2645.59,0.00012952,2]
[337935949,1726210240825,-814.66,0.00012952,2]
[337935950,1726210240834,-2421.89,0.00012952,2]
[337935951,1726210240843,-500.0,0.00012952,2]
[337935953,1726210240852,-917.81,0.00012952,2]
[337935954,1726210240861,-1603.44,0.00012952,2]
[337935955,1726210240870,-3115.24,0.00012952,2]
[337935957,1726210240879,-151.23,0.00012981,2]
[337935958,1726210240888,-20607.21550417,0.00012991,2]
[337935959,1726210240898,-1278.97,0.00013,2]
[337935961,1726210240907,-500.0,0.00013,2]
[337935962,1726210240916,-532.52,0.00013,2]
[337935963,1726210240925,-690.64167,0.0001302,2]
[337935965,1726210240934,-164.8247515,0.00013026,2]
[337935966,1726210240943,-199.5544492,0.00013026,2]
[337935967,1726210240952,-1592.1536738,0.00013044,2]
[337935969,1726210240962,-422.42,0.00013096,2]
[337935970,1726210240972,-422.42,0.00013096,2]
[337935971,1726210240982,-422.42,0.00013096,2]
[337935973,1726210240993,-422.42,0.00013096,2]
[337935974,1726210241002,-419.82,0.00013096,2]
[337935975,1726210241011,-500.0,0.000131,2]
[337935977,1726210241020,-690.64167,0.000131,2]
[337935978,1726210241029,-151.23,0.00013115,2]
[337935979,1726210241038,-151.23,0.00013116,2]
[337935981,1726210241047,-158.10949927,0.00013124,2]
[337935982,1726210241056,-680.57,0.00013125,2]
[337935983,1726210241067,-500.0,0.00013125,2]
[337935985,1726210241077,-35928.76,0.00013125,2]
[337935986,1726210241086,-2132.67,0.00013125,2]
[337935988,1726210241096,-804.78,0.00013125,2]
[337935989,1726210241105,-5059.77,0.00013125,2]
[337935990,1726210241114,-1247.6,0.00013125,2]
[337935992,1726210241123,-637.81,0.00013125,2]
[337935993,1726210241132,-1040.49,0.00013125,2]
[337935994,1726210241142,-1436.71,0.00013125,2]
[337935995,1726210241151,-500.0,0.00013125,2]
[337935997,1726210241161,-1874.87,0.00013125,2]
[337935998,1726210241171,-3033.76,0.00013125,2]
[337936000,1726210241180,-978.85,0.00013125,2]
[337936001,1726210241190,-1459.79,0.00013125,2]
[337936002,1726210241199,-2126.29,0.00013125,2]
[337936004,1726210241209,-1787.21,0.00013125,2]
[337936005,1726210241218,-2770.49,0.00013125,2]
[337936006,1726210241227,-8023.77,0.00013125,2]
[337936008,1726210241237,-1691.04,0.00013125,2]
[337936009,1726210241247,-2782.85,0.00013125,2]
[337936010,1726210241257,-2344.85,0.00013125,2]
[337936012,1726210241266,-3034.42,0.00013125,2]
[337936013,1726210241276,-2091.4,0.00013125,2]
[337936014,1726210241285,-528.93,0.00013125,2]
[337936016,1726210241294,-1215.6,0.00013125,2]
[337936017,1726210241303,-1547.58,0.00013125,2]
[337936018,1726210241313,-4867.36,0.00013125,2]
[337936020,1726210241322,-5690.42,0.00013125,2]
[337936021,1726210241331,-771.97,0.00013125,2]
[337936022,1726210241341,-2160.65,0.00013125,2]
[337936024,1726210241350,-2032.81,0.00013125,2]
[337936025,1726210241359,-7869.74,0.00013125,2]
[337936026,1726210241368,-29975.64,0.00013125,2]
[337936028,1726210241378,-1347.86,0.00013125,2]
[337936029,1726210241387,-1834.03,0.00013125,2]
[337936030,1726210241397,-7109.28,0.00013125,2]
[337936032,1726210241407,-1788.3,0.00013125,2]
[337936033,1726210241420,-1806.63,0.00013125,2]
[337936034,1726210241429,-6264.05,0.00013125,2]
[337936036,1726210241439,-1542.67,0.00013125,2]
[337936037,1726210241448,-1042.36,0.00013125,2]
[337936038,1726210241459,-1099.93,0.00013125,2]
[337936040,1726210241468,-2655.07,0.00013125,2]
[337936041,1726210241477,-4708.25,0.00013125,2]
[337936042,1726210241485,-2372.4,0.00013125,2]
[337936044,1726210241500,-783.77,0.00013125,2]
[337936045,1726210241509,-6725.33,0.00013125,2]
[337936046,1726210241519,-5623.03,0.00013125,2]
[337936048,1726210241529,-586.52,0.00013125,2]
[337936049,1726210241538,-2909.95,0.00013125,2]
[337936050,1726210241548,-906.93,0.00013125,2]
[337936051,1726210241557,-526.39,0.00013125,2]
[337936053,1726210241567,-500.0,0.00013125,2]
[337936054,1726210241576,-500.0,0.00013125,2]
[337936056,1726210241586,-4737.4,0.00013125,2]
[337936057,1726210241595,-506.41,0.00013125,2]
[337936058,1726210241605,-849.22,0.00013125,2]
[337936060,1726210241615,-1014.07,0.00013125,2]
[337936061,1726210241625,-18731.2092,0.00013126,2]
[337936062,1726210241634,-245000.0,0.00013126,2]
[337936064,1726210241644,-1199.2739,0.00013126,2]
[337936065,1726210241654,-62378.3743,0.00013126,2]
[337936066,1726210241663,-3356.8385,0.00013126,2]
[337936068,1726210241673,-1000.0,0.00013126,2]
[337936069,1726210241682,-158.58325985,0.00013164,2]
[337936070,1726210241692,-690.64167,0.0001317,2]
[337936072,1726210241701,-500.0,0.00013173,2]
[337936073,1726210241711,-500.0,0.000132,2]
[337936074,1726210241721,-313.94,0.000132,2]
[337936075,1726210241731,-1001.8,0.000132,2]
[337936076,1726210241740,-500.0,0.00013222,2]
[337936077,1726210241750,-500.0,0.00013222,2]
[337936078,1726210241759,-1644.65,0.00013222,2]
[337936079,1726210241770,-500.0,0.00013222,2]
[337936080,1726210241779,-500.0,0.00013222,2]
[337936081,1726210241789,-500.0,0.00013222,2]
[337936082,1726210241799,-936.11,0.00013222,2]
[337936083,1726210241808,-500.0,0.00013222,2]
[337936084,1726210241817,-500.0,0.00013222,2]
[337936085,1726210241826,-500.0,0.00013222,2]
[337936086,1726210241835,-1410.91,0.00013222,2]
[337936087,1726210241845,-253.39922171,0.00013222,2]
[337936088,1726210241854,-596.6,0.00013222,2]
[337936089,1726210241865,-500.0,0.00013222,2]
[337936090,1726210241875,-500.0,0.00013222,2]
[337936091,1726210241886,-500.0,0.00013222,2]
[337936092,1726210241896,-500.0,0.00013222,2]
[337936093,1726210241905,-500.0,0.00013222,2]
[337936094,1726210241915,-500.0,0.00013222,2]
[337936095,1726210241925,-500.0,0.00013222,2]
[337936096,1726210241934,-500.0,0.00013222,2]
[337936097,1726210241944,-997.65,0.00013222,2]
[337936098,1726210241954,-500.0,0.00013222,2]
[337936099,1726210241963,-500.0,0.00013222,2]
[337936100,1726210241973,-734.84,0.00013222,2]
[337936101,1726210241982,-500.0,0.00013222,2]
[337936102,1726210241992,-960.8,0.00013222,2]
[337936103,1726210242002,-500.0,0.00013222,2]
[337936104,1726210242011,-500.0,0.00013222,2]
[337936105,1726210242020,-500.0,0.00013222,2]
[337936106,1726210242029,-1376.85,0.00013223,2]
[337936107,1726210242040,-724.24,0.00013223,2]
[337936108,1726210242049,-880.44,0.00013223,2]
[337936109,1726210242058,-1721.18,0.00013223,2]
[337936110,1726210242067,-500.0,0.00013223,2]
[337936111,1726210242077,-547.76,0.00013223,2]
[337936112,1726210242086,-1645.89,0.00013223,2]
[337936113,1726210242096,-500.0,0.00013223,2]
[337936114,1726210242105,-1337.47,0.00013223,2]
[337936115,1726210242115,-1862.11,0.00013223,2]
[337936116,1726210242125,-500.0,0.00013223,2]
[337936117,1726210242134,-1841.96,0.00013223,2]
[337936118,1726210242143,-1895.48,0.00013223,2]
[337936119,1726210242153,-500.0,0.00013223,2]
[337936120,1726210242162,-910.45,0.00013223,2]
[337936121,1726210242295,-500.0,0.00013223,2]
[337936122,1726210242308,-500.0,0.00013223,2]
[337936123,1726210242318,-500.0,0.00013223,2]
[337936124,1726210242329,-1398.42,0.00013223,2]
[337936125,1726210242340,-543.42,0.00013223,2]
[337936126,1726210242350,-1068.71,0.00013223,2]
[337936127,1726210242360,-1012.56,0.00013223,2]
[337936128,1726210242370,-2162.4,0.00013223,2]
[337936129,1726210242381,-500.0,0.00013223,2]
[337936130,1726210242390,-1453.0,0.00013223,2]
[337936131,1726210242400,-759.8,0.00013223,2]
[337936132,1726210242410,-1511.79,0.00013223,2]
[337936133,1726210242424,-500.0,0.00013223,2]
[337936134,1726210242434,-500.0,0.00013223,2]
[337936135,1726210242444,-1372.58,0.00013223,2]
[337936136,1726210242454,-2253.41,0.00013223,2]
[337936137,1726210242465,-1650.95,0.00013223,2]
[337936138,1726210242475,-967.77,0.00013223,2]
[337936139,1726210242485,-500.0,0.00013223,2]
[337936140,1726210242496,-1177.63,0.00013223,2]
[337936141,1726210242505,-615.13,0.00013223,2]
[337936142,1726210242515,-1989.31,0.00013223,2]
[337936143,1726210242524,-1028.91,0.00013223,2]
[337936144,1726210242533,-1740.08,0.00013223,2]
[337936145,1726210242543,-500.0,0.00013223,2]
[337936146,1726210242553,-863.13,0.00013223,2]
[337936147,1726210242562,-1948.81,0.00013223,2]
[337936148,1726210242571,-1226.1,0.00013223,2]
[337936149,1726210242580,-998.62,0.00013223,2]
[337936150,1726210242591,-1094.97,0.00013223,2]
[337936151,1726210242601,-544.73,0.00013223,2]
[337936152,1726210242610,-500.0,0.00013223,2]
[337936153,1726210242621,-993.64,0.00013223,2]
[337936154,1726210242630,-881.36,0.00013223,2]
[337936155,1726210242640,-1712.74,0.00013223,2]
[337936156,1726210242650,-795.65,0.00013223,2]
[337936157,1726210242660,-748.28,0.00013223,2]
[337936158,1726210242669,-547.48059239,0.00013223,2]
[337936159,1726210242679,-500.0,0.00013223,2]
[337936160,1726210242689,-2044.23,0.00013223,2]
[337936161,1726210242699,-663.12,0.00013223,2]
[337936162,1726210242709,-500.0,0.00013223,2]
[337936163,1726210242719,-1782.19,0.00013223,2]
[337936164,1726210242728,-4907.89,0.00013223,2]
[337936165,1726210242738,-729.14,0.00013223,2]
[337936166,1726210242748,-736.59,0.00013223,2]
[337936167,1726210242758,-2453.01,0.00013223,2]
[337936168,1726210242767,-500.0,0.00013223,2]
[337936169,1726210242777,-2282.41,0.00013223,2]
[337936170,1726210242787,-2759.94,0.00013223,2]
[337936171,1726210242796,-1975.26,0.00013223,2]
[337936172,1726210242806,-1604.79,0.00013223,2]
[337936173,1726210242815,-500.0,0.00013223,2]
[337936174,1726210242825,-3130.36,0.00013223,2]
[337936175,1726210242835,-500.0,0.00013223,2]
[337936176,1726210242844,-500.0,0.00013223,2]
[337936177,1726210242854,-510.03,0.00013223,2]
[337936178,1726210242863,-1512.28,0.00013223,2]
[337936179,1726210242872,-699.63,0.00013223,2]
[337936180,1726210242882,-1751.87,0.00013223,2]
[337936181,1726210242891,-957.91,0.00013223,2]
[337936182,1726210242901,-3257.95,0.00013223,2]
[337936183,1726210242910,-3217.86,0.00013223,2]
[337936184,1726210242919,-500.0,0.00013223,2]
[337936185,1726210242929,-2735.9,0.00013223,2]
[337936186,1726210242938,-693.65,0.00013223,2]
[337936187,1726210242948,-1440.25,0.00013223,2]
[337936188,1726210242958,-500.0,0.00013223,2]
[337936189,1726210242968,-500.0,0.00013223,2]
[337936190,1726210242978,-4839.81,0.00013223,2]
[337936191,1726210242987,-4971.08,0.00013223,2]
[337936192,1726210242998,-2576.61,0.00013223,2]
[337936193,1726210243008,-839.24,0.00013223,2]
[337936194,1726210243018,-1921.46,0.00013223,2]
[337936195,1726210243027,-500.0,0.00013223,2]
[337936196,1726210243037,-733.53,0.00013223,2]
[337936197,1726210243047,-2281.46,0.00013223,2]
[337936198,1726210243057,-2052.83,0.00013223,2]
[337936199,1726210243067,-1631.43,0.00013223,2]
[337936200,1726210243076,-1705.5,0.00013223,2]
[337936201,1726210243086,-500.0,0.00013223,2]
[337936202,1726210243096,-500.0,0.00013223,2]
[337936203,1726210243105,-3678.43,0.00013223,2]
[337936204,1726210243115,-1759.02,0.00013223,2]
[337936205,1726210243124,-1651.73,0.00013223,2]
[337936206,1726210243134,-1556.19,0.00013223,2]
[337936207,1726210243144,-2571.0,0.00013223,2]
[337936208,1726210243153,-1770.67,0.00013223,2]
[337936209,1726210243163,-1895.57,0.00013223,2]
[337936210,1726210243173,-500.0,0.00013223,2]
[337936211,1726210243182,-2418.89,0.00013223,2]
[337936212,1726210243191,-4742.76,0.00013223,2]
[337936213,1726210243201,-2281.98,0.00013223,2]
[337936214,1726210243210,-923.0,0.00013224,2]
[337936215,1726210243220,-2066.33,0.00013224,2]
[337936216,1726210243229,-500.0,0.00013224,2]
[337936217,1726210243239,-662.92,0.00013224,2]
[337936218,1726210243249,-1696.35,0.00013224,2]
[337936219,1726210243259,-3291.14,0.00013224,2]
[337936220,1726210243269,-646.73,0.00013224,2]
[337936221,1726210243278,-2947.87,0.00013224,2]
[337936222,1726210243288,-1958.91,0.00013224,2]
[337936223,1726210243297,-40201.89,0.00013224,2]
[337936224,1726210243307,-1742.06,0.00013224,2]
[337936225,1726210243316,-1516.56,0.00013224,2]
[337936226,1726210243326,-1669.15,0.00013224,2]
[337936227,1726210243335,-1733.7,0.00013224,2]
[337936228,1726210243344,-1708.6,0.00013224,2]
[337936229,1726210243354,-1028.33,0.00013224,2]
[337936230,1726210243363,-1725.47,0.00013224,2]
[337936231,1726210243373,-3043.32,0.00013224,2]
[337936232,1726210243383,-1431.38,0.00013224,2]
[337936233,1726210243392,-2247.09,0.00013224,2]
[337936234,1726210243402,-4075.67,0.00013224,2]
[337936235,1726210243414,-744.35,0.00013224,2]
[337936236,1726210243423,-595.67,0.00013224,2]
[337936237,1726210243433,-151.825651,0.00013224,2]
[337936238,1726210243442,-7041.33,0.00013224,2]
[337936239,1726210243451,-27141.69,0.00013224,2]
[337936240,1726210243462,-3829.82,0.00013224,2]
[337936241,1726210243471,-151.0,0.00013224,2]
[337936242,1726210243481,-8755.15,0.00013224,2]
[337936243,1726210243493,-1910.92,0.00013224,2]
[337936244,1726210243502,-2566.71,0.00013224,2]
[337936245,1726210243512,-762.72,0.00013224,2]
[337936246,1726210243522,-500.0,0.00013225,2]
[337936247,1726210243532,-890.6,0.00013225,2]
[337936248,1726210243543,-300.22136086,0.00013225,2]
[337936249,1726210243552,-556.69,0.00013225,2]
[337936250,1726210243562,-500.0,0.00013225,2]
[337936251,1726210243572,-500.0,0.00013225,2]
[337936252,1726210243582,-599.04,0.00013225,2]
[337936253,1726210243591,-500.0,0.00013225,2]
[337936254,1726210243600,-1296.24,0.00013225,2]
[337936255,1726210243610,-500.0,0.00013225,2]
[337936256,1726210243620,-500.0,0.00013225,2]
[337936257,1726210243630,-500.0,0.00013225,2]
[337936258,1726210243640,-500.0,0.00013225,2]
[337936259,1726210243650,-500.0,0.00013225,2]
[337936260,1726210243661,-1438.2,0.00013225,2]
[337936261,1726210243671,-500.0,0.00013225,2]
[337936262,1726210243680,-500.0,0.00013225,2]
[337936263,1726210243690,-1224.7,0.00013225,2]
[337936264,1726210243700,-164.31576156,0.00013225,2]
[337936265,1726210243710,-500.0,0.00013225,2]
[337936266,1726210243720,-1037.91,0.00013225,2]
[337936267,1726210243730,-500.0,0.00013225,2]
[337936268,1726210243739,-500.0,0.00013225,2]
[337936269,1726210243749,-500.0,0.00013225,2]
[337936270,1726210243759,-500.0,0.00013225,2]
[337936271,1726210243768,-500.0,0.00013225,2]
[337936272,1726210243779,-500.0,0.00013225,2]
[337936273,1726210243788,-926.48,0.00013225,2]
[337936274,1726210243798,-500.0,0.00013225,2]
[337936275,1726210243809,-500.0,0.00013225,2]
[337936276,1726210243819,-956.52,0.00013225,2]
[337936277,1726210243830,-569.29,0.00013225,2]
[337936278,1726210243840,-695.38,0.00013225,2]
[337936279,1726210243851,-849.05,0.00013225,2]
[337936280,1726210243863,-960.69,0.00013225,2]
[337936281,1726210243872,-500.0,0.00013225,2]
[337936282,1726210243882,-500.0,0.00013225,2]
[337936283,1726210243891,-2228.05,0.00013225,2]
[337936284,1726210243901,-852.38,0.00013225,2]
[337936285,1726210243910,-3382.98,0.00013225,2]
[337936286,1726210243919,-1913.65,0.00013225,2]
[337936287,1726210243928,-1255.86,0.00013225,2]
[337936288,1726210243938,-1161.32,0.00013225,2]
[337936289,1726210243948,-1697.12,0.00013225,2]
[337936290,1726210243958,-1652.42,0.00013225,2]
[337936291,1726210243967,-1654.67,0.00013225,2]
[337936292,1726210243977,-153.090588,0.00013225,2]
[337936293,1726210243986,-1645.26,0.00013225,2]
[337936294,1726210243997,-1222.06,0.00013225,2]
[337936295,1726210244007,-1197.59,0.00013225,2]
[337936296,1726210244017,-751.98,0.00013225,2]
[337936297,1726210244027,-1332.16,0.00013225,2]
[337936298,1726210244037,-500.0,0.00013225,2]
[337936299,1726210244046,-500.0,0.00013225,2]
[337936300,1726210244055,-3139.26,0.00013225,2]
[337936301,1726210244064,-539.22,0.00013225,2]
[337936302,1726210244074,-1200.96,0.00013225,2]
[337936303,1726210244084,-2280.8,0.00013225,2]
[337936304,1726210244094,-500.0,0.00013225,2]
[337936305,1726210244104,-500.0,0.00013225,2]
[337936306,1726210244114,-1028.49,0.00013225,2]
[337936307,1726210244124,-1816.35,0.00013225,2]
[337936308,1726210244133,-357.594923,0.00013225,2]
[337936309,1726210244143,-357.594923,0.00013225,2]
[337936310,1726210244155,-2740.22,0.00013225,2]
[337936311,1726210244164,-1710.12,0.00013225,2]
[337936312,1726210244174,-1331.66,0.00013225,2]
[337936313,1726210244183,-500.0,0.00013225,2]
[337936314,1726210244192,-500.0,0.00013225,2]
[337936315,1726210244202,-685.49,0.00013225,2]
[337936316,1726210244211,-644.85,0.00013225,2]
[337936317,1726210244221,-1523.78,0.00013225,2]
[337936318,1726210244230,-500.0,0.00013225,2]
[337936319,1726210244239,-891.22,0.00013225,2]
[337936320,1726210244249,-500.0,0.00013225,2]
[337936321,1726210244258,-779.04,0.00013225,2]
[337936322,1726210244268,-500.0,0.00013225,2]
[337936323,1726210244277,-751.18,0.00013225,2]
[337936324,1726210244286,-500.0,0.00013225,2]
[337936325,1726210244297,-2429.77,0.00013225,2]
[337936326,1726210244305,-500.0,0.00013225,2]
[337936327,1726210244315,-1454.87,0.00013225,2]
[337936328,1726210244324,-684.01,0.00013225,2]
[337936329,1726210244334,-562.56,0.00013225,2]
[337936330,1726210244343,-500.0,0.00013225,2]
[337936331,1726210244353,-2187.28,0.00013225,2]
[337936332,1726210244362,-500.0,0.00013225,2]
[337936333,1726210244371,-1373.53,0.00013225,2]
[337936334,1726210244381,-155.90098388,0.00013225,2]
[337936335,1726210244391,-500.0,0.00013225,2]
[337936336,1726210244401,-500.0,0.00013225,2]
[337936337,1726210244411,-425.5398045,0.00013225,2]
[337936338,1726210244423,-657.39,0.00013225,2]
[337936339,1726210244433,-579.86,0.00013225,2]
[337936340,1726210244442,-1321.01,0.00013225,2]
[337936341,1726210244452,-500.0,0.00013225,2]
[337936342,1726210244463,-516.09,0.00013225,2]
[337936343,1726210244472,-500.0,0.00013225,2]
[337936344,1726210244481,-500.0,0.00013225,2]
[337936345,1726210244492,-152.51434,0.00013225,2]
[337936346,1726210244502,-791.86,0.00013225,2]
[337936347,1726210244511,-634.09,0.00013225,2]
[337936348,1726210244521,-1453.89,0.00013225,2]
[337936349,1726210244531,-1772.65,0.00013225,2]
[337936350,1726210244540,-227.74395969,0.00013225,2]
[337936351,1726210244550,-671.19,0.00013225,2]
[337936352,1726210244559,-151.0,0.00013225,2]
[337936353,1726210244568,-500.0,0.00013225,2]
[337936354,1726210244840,-614.95,0.00013225,2]
[337936355,1726210244862,-557.22,0.00013225,2]
[337936356,1726210244872,-1682.12,0.00013225,2]
[337936357,1726210244881,-671.56,0.00013225,2]
[337936358,1726210244891,-1031.13,0.00013225,2]
[337936359,1726210244900,-500.0,0.00013225,2]
[337936360,1726210244909,-151.0,0.00013225,2]
[337936361,1726210244919,-957.07,0.00013225,2]
[337936362,1726210244928,-500.0,0.00013225,2]
[337936363,1726210244938,-500.0,0.00013225,2]
[337936364,1726210244947,-3171.09,0.00013225,2]
[337936365,1726210244956,-954.63,0.00013225,2]
[337936366,1726210244966,-538.41,0.00013225,2]
[337936367,1726210244975,-500.0,0.00013225,2]
[337936368,1726210244984,-377.94161641,0.00013225,2]
[337936369,1726210244994,-2191.26,0.00013225,2]
[337936370,1726210245005,-1230.93,0.00013225,2]
[337936371,1726210245014,-500.0,0.00013225,2]
[337936372,1726210245023,-500.0,0.00013225,2]
[337936373,1726210245032,-1222.55,0.00013225,2]
[337936374,1726210245041,-500.0,0.00013225,2]
[337936375,1726210245051,-1738.87,0.00013225,2]
[337936376,1726210245060,-349.79407333,0.00013225,2]
[337936377,1726210245069,-1816.7,0.00013225,2]
[337936378,1726210245078,-585.45,0.00013225,2]
[337936379,1726210245092,-500.0,0.00013225,2]
[337936380,1726210245101,-500.0,0.00013225,2]
[337936381,1726210245111,-1552.23,0.00013225,2]
[337936382,1726210245120,-657.88,0.00013225,2]
[337936383,1726210245130,-1737.39,0.00013225,2]
[337936384,1726210245139,-500.0,0.00013225,2]
[337936385,1726210245149,-2154.77,0.00013225,2]
[337936386,1726210245158,-1267.08,0.00013226,2]
[337936387,1726210245168,-650.09,0.00013226,2]
[337936388,1726210245177,-500.0,0.00013226,2]
[337936389,1726210245188,-2220.15,0.00013226,2]
[337936390,1726210245197,-2541.68,0.00013226,2]
[337936391,1726210245207,-3221.15,0.00013226,2]
[337936392,1726210245216,-2126.3,0.00013226,2]
[337936393,1726210245226,-2645.59,0.00013226,2]
[337936394,1726210245236,-814.66,0.00013226,2]
[337936395,1726210245246,-2421.89,0.00013226,2]
[337936396,1726210245255,-500.0,0.00013226,2]
[337936397,1726210245264,-917.81,0.00013226,2]
[337936398,1726210245274,-1603.44,0.00013226,2]
[337936399,1726210245283,-3115.24,0.00013226,2]
[337936400,1726210245292,-20607.21550417,0.00013229,2]
[337936401,1726210245301,-690.64166,0.0001325,2]
[337936402,1726210245311,-447.0,0.00013266,2]
[337936403,1726210245321,-1261.0,0.00013266,2]
[337936404,1726210245331,-624.0,0.00013266,2]
[337936405,1726210245340,-558.0,0.00013266,2]
[337936406,1726210245350,-932.0,0.00013266,2]
[337936408,1726210245360,-811.0,0.00013266,2]